fUSD/lending_fUSD_20250519
["ID","MTS","AMOUNT","RATE_DAILY","PERIOD"]
[361575880,1747620671045,-400.0,0.00013917,2]
[361575881,1747620671058,-151.984649,0.00013917,2]
[361575882,1747620671069,-708.89,0.00013917,2]
[361575883,1747620671078,-400.0,0.00013917,2]
[361575884,1747620671088,-400.0,0.00013917,2]
[361575885,1747620671098,-400.0,0.00013917,2]
[361575886,1747620671108,-714.72,0.00013917,2]
[361575887,1747620671117,-400.0,0.00013917,2]
[361575888,1747620671127,-401.06735197,0.00013917,2]
[361575889,1747620671138,-443.62862546,0.00013917,2]
[361575890,1747620671149,-400.0,0.00013917,2]
[361575891,1747620671158,-400.0,0.00013917,2]
[361575892,1747620671168,-400.0,0.00013917,2]
[361575893,1747620671178,-400.0,0.00013917,2]
[361575894,1747620671188,-400.0,0.00013917,2]
[361575895,1747620671198,-400.0,0.00013917,2]
[361575896,1747620671210,-400.0,0.00013917,2]
[361575897,1747620671220,-400.0,0.00013917,2]
[361575898,1747620671230,-400.0,0.00013917,2]
[361575899,1747620671239,-888.49,0.00013917,2]
[361575900,1747620671250,-400.0,0.00013917,2]
[361575901,1747620671259,-400.0,0.00013917,2]
[361575902,1747620671269,-400.0,0.00013917,2]
[361575903,1747620671279,-400.0,0.00013917,2]
[361575904,1747620671290,-3.68035566,0.00013917,2]
[361575905,1747620671309,-1199.75964434,0.00013917,2]
[361575906,1747620671320,-645.63,0.00013917,2]
[361575907,1747620671330,-400.0,0.00013917,2]
[361575908,1747620671341,-1241.14,0.00013917,2]
[361575909,1747620671351,-1037.15,0.00013917,2]
[361575910,1747620671362,-400.0,0.00013917,2]
[361575911,1747620671372,-443.96519271,0.00013917,2]
[361575912,1747620671381,-779.99,0.00013917,2]
[361575913,1747620671391,-442.82,0.00013917,2]
[361575914,1747620671401,-400.0,0.00013917,2]
[361575915,1747620671411,-400.0,0.00013917,2]
[361575916,1747620671421,-400.0,0.00013917,2]
[361575917,1747620671431,-523.5,0.00013917,2]
[361575918,1747620671441,-416.28,0.00013917,2]
[361575919,1747620671452,-722.8,0.00013917,2]
[361575920,1747620671462,-400.0,0.00013917,2]
[361575921,1747620671472,-400.0,0.00013917,2]
[361575922,1747620671483,-525.79,0.00013917,2]
[361575923,1747620671493,-400.0,0.00013917,2]
[361575924,1747620671503,-400.0,0.00013917,2]
[361575925,1747620671513,-400.0,0.00013917,2]
[361575926,1747620671524,-400.0,0.00013917,2]
[361575927,1747620671534,-832.98,0.00013917,2]
[361575928,1747620671545,-1013.53,0.00013917,2]
[361575929,1747620671557,-670.23,0.00013917,2]
[361575930,1747620671567,-702.83,0.00013917,2]
[361575931,1747620671578,-400.0,0.00013917,2]
[361575932,1747620671588,-405.45125615,0.00013917,2]
[361575933,1747620671598,-400.0,0.00013917,2]
[361575934,1747620671611,-1257.96,0.00013917,2]
[361575935,1747620671621,-400.0,0.00013917,2]
[361575936,1747620671629,-400.0,0.00013917,2]
[361575937,1747620671639,-801.8,0.00013917,2]
[361575938,1747620671649,-518.57,0.00013917,2]
[361575939,1747620671658,-400.0,0.00013917,2]
[361575940,1747620671667,-400.0,0.00013917,2]
[361575941,1747620671677,-400.0,0.00013917,2]
[361575942,1747620671686,-432.17,0.00013917,2]
[361575943,1747620671696,-400.0,0.00013917,2]
[361575944,1747620671705,-400.0,0.00013917,2]
[361575945,1747620671715,-531.59,0.00013917,2]
[361575946,1747620671725,-568.49,0.00013917,2]
[361575947,1747620671735,-489.47,0.00013917,2]
[361575948,1747620671744,-151.0,0.00013917,2]
[361575949,1747620671755,-151.0,0.00013917,2]
[361575950,1747620671764,-155.302743,0.00013917,2]
[361575951,1747620671773,-153.044457,0.00013917,2]
[361575952,1747620671782,-400.0,0.00013917,2]
[361575953,1747620671792,-400.0,0.00013917,2]
[361575954,1747620671805,-151.0,0.00013917,2]
[361575955,1747620671815,-151.0,0.00013917,2]
[361575956,1747620671826,-152.073813,0.00013917,2]
[361575957,1747620671837,-1293.94,0.00013917,2]
[361575958,1747620671847,-890.37,0.00013917,2]
[361575959,1747620671857,-400.0,0.00013917,2]
[361575960,1747620671867,-678.26,0.00013917,2]
[361575961,1747620671877,-400.0,0.00013917,2]
[361575962,1747620671888,-400.0,0.00013917,2]
[361575963,1747620671897,-151.0,0.00013917,2]
[361575964,1747620671907,-400.0,0.00013917,2]
[361575965,1747620671918,-151.0,0.00013917,2]
[361575966,1747620671929,-791.31,0.00013917,2]
[361575967,1747620671939,-478.06066924,0.00013917,2]
[361575968,1747620671949,-151.0,0.00013917,2]
[361575969,1747620671959,-400.0,0.00013917,2]
[361575970,1747620671969,-409.45448118,0.00013917,2]
[361575971,1747620671979,-1095.07,0.00013917,2]
[361575972,1747620671989,-1088.54,0.00013917,2]
[361575973,1747620672000,-765.58,0.00013917,2]
[361575974,1747620672010,-340.47115042,0.00013917,2]
[361575975,1747620672020,-400.0,0.00013917,2]
[361575976,1747620672029,-151.0,0.00013917,2]
[361575977,1747620672038,-151.0,0.00013917,2]
[361575978,1747620672049,-151.0,0.00013917,2]
[361575979,1747620672061,-400.0,0.00013917,2]
[361575980,1747620672072,-807.25,0.00013917,2]
[361575981,1747620672082,-400.0,0.00013917,2]
[361575982,1747620672092,-400.0,0.00013917,2]
[361575983,1747620672102,-1005.61,0.00013917,2]
[361575984,1747620672112,-1735.14,0.00013917,2]
[361575985,1747620672122,-400.0,0.00013917,2]
[361575986,1747620672134,-870.21,0.00013917,2]
[361575987,1747620672143,-778.23,0.00013917,2]
[361575988,1747620672153,-638.62,0.00013917,2]
[361575989,1747620672164,-334.60009918,0.00013917,2]
[361575990,1747620672174,-404.26743712,0.00013917,2]
[361575991,1747620672184,-505.31,0.00013917,2]
[361575992,1747620672195,-1473.63,0.00013917,2]
[361575993,1747620672206,-181.6789609,0.00013917,2]
[361575994,1747620672225,-218.3210391,0.00013917,2]
[361575995,1747620672236,-140.33896103,0.00013917,2]
[361575996,1747620672289,-5964.999,0.00013742,2]
[361575997,1747620672299,-95.11180997,0.00013917,2]
[361575998,1747620672314,-235.450771,0.00013917,2]
[361575999,1747620672324,-1146.33,0.00013917,2]
[361576000,1747620672333,-400.0,0.00013917,2]
[361576001,1747620672344,-397.255941,0.00013917,2]
[361576002,1747620672354,-397.255941,0.00013917,2]
[361576003,1747620672364,-1027.4,0.00013917,2]
[361576004,1747620672374,-704.89501707,0.00013917,2]
[361576005,1747620911775,189.78,0.000139,7]
[361576006,1747620928189,600.0,0.000139,7]
[361576007,1747620961866,300.0,0.000139,7]
[361576008,1747621202160,-368.59695874,0.00012709,2]
[361576009,1747621445333,-166.11,0.00012691,2]
[361576010,1747621445358,-335.75304126,0.00012709,2]
[361576011,1747621445382,-1061.81,0.00012868,2]
[361576012,1747621445408,-495.92,0.00012872,2]
[361576013,1747621445432,-200.0,0.00012881,2]
[361576014,1747621445457,-1000.0,0.0001289,2]
[361576015,1747621445483,-230.0,0.00012998,2]
[361576016,1747621445508,-1200.0,0.00012999,2]
[361576017,1747621445532,-150.0,0.00012999,2]
[361576018,1747621445558,-3186.1,0.00013,2]
[361576019,1747621445581,-3186.1,0.00013,2]
[361576020,1747621445605,-3186.1,0.00013,2]
[361576021,1747621445630,-3186.1,0.00013,2]
[361576022,1747621445655,-3186.1,0.00013,2]
[361576023,1747621445683,-1160.79468751,0.00013053,2]
[361576024,1747621445709,-207.4,0.00013116,2]
[361576025,1747621445739,-166.14,0.00013137,2]
[361576026,1747621445766,-518.39419446,0.00013183,2]
[361576027,1747621445791,-758.19469607,0.00013429,2]
[361576028,1747621445817,-397.30945709,0.00013485,2]
[361576029,1747621445843,-1021.67392361,0.00013498,2]
[361576030,1747621476670,-2008.41567729,0.00013498,2]
[361576031,1747621476693,-317.7523,0.00013498,2]
[361576032,1747621476715,-226.8743,0.00013498,2]
[361576033,1747621476739,-5606.8041,0.00013498,2]
[361576034,1747621476763,-3030.08960084,0.00013543,2]
[361576035,1747621476787,-3030.08960084,0.00013587,2]
[361576036,1747621476812,-3056.27471942,0.00013588,2]
[361576037,1747621476837,-911.754,0.00013598,2]
[361576038,1747621476861,-593.37898583,0.00013598,2]
[361576039,1747621476885,-160.92013149,0.00013598,2]
[361576040,1747621476910,-169.56742905,0.00013598,2]
[361576041,1747621476934,-1464.04607815,0.00013598,2]
[361576042,1747621476956,-1418.7044,0.00013598,2]
[361576043,1747621476980,-119842.0795,0.00013598,2]
[361576044,1747621477005,-1312.6046,0.00013598,2]
[361576045,1747621477028,-657.9765,0.00013598,2]
[361576046,1747621477052,-7259.02961336,0.00013612,2]
[361576047,1747621477075,-1464.04607812,0.00013632,2]
[361576048,1747621477099,-3030.08960084,0.00013632,2]
[361576049,1747621477123,-1464.04607812,0.00013665,2]
[361576050,1747621477146,-504.59158151,0.00013673,2]
[361576051,1747621477169,-3030.08960084,0.00013677,2]
[361576052,1747621477193,-202.0,0.00013688,2]
[361576053,1747621477217,-191.23424047,0.0001369,2]
[361576054,1747621477242,-14047.54128383,0.00013693,2]
[361576055,1747621482031,150.0,0.00014,5]
[361576056,1747621516868,-6064.7562,0.00013598,2]
[361576057,1747621516894,-1200.0,0.00013692,2]
[361576058,1747621516918,-26117.19586089,0.00013693,2]
[361576059,1747621516943,-400.0,0.00013698,2]
[361576060,1747621516968,-406.16813922,0.00013698,2]
[361576061,1747621516993,-400.0,0.00013698,2]
[361576062,1747621517020,-400.0,0.00013698,2]
[361576063,1747621517046,-400.0,0.00013698,2]
[361576064,1747621517072,-540.78192783,0.00013698,2]
[361576065,1747621517098,-400.0,0.00013698,2]
[361576066,1747621517122,-400.0,0.00013698,2]
[361576067,1747621517146,-400.0,0.00013698,2]
[361576068,1747621517170,-400.0,0.00013698,2]
[361576069,1747621517196,-400.0,0.00013698,2]
[361576070,1747621517221,-402.65354392,0.00013698,2]
[361576071,1747621517245,-400.0,0.00013698,2]
[361576072,1747621517270,-540.66,0.00013698,2]
[361576073,1747621517295,-494.78,0.00013698,2]
[361576074,1747621517319,-450.69343317,0.00013698,2]
[361576075,1747621517343,-400.0,0.00013698,2]
[361576076,1747621517368,-400.0,0.00013698,2]
[361576077,1747621517392,-404.06034832,0.00013698,2]
[361576078,1747621517416,-400.0,0.00013698,2]
[361576079,1747621517440,-436.88,0.00013698,2]
[361576080,1747621517464,-400.0,0.00013698,2]
[361576081,1747621517491,-402.95265151,0.00013698,2]
[361576082,1747621517516,-400.0,0.00013698,2]
[361576083,1747621517543,-397.72855603,0.00013698,2]
[361576084,1747621517566,-402.82583117,0.00013698,2]
[361576085,1747621517592,-333.68283292,0.00013698,2]
[361576086,1747621517617,-404.35337207,0.00013698,2]
[361576087,1747621517646,-400.0,0.00013698,2]
[361576088,1747621517671,-400.0,0.00013698,2]
[361576089,1747621517695,-600.87,0.00013698,2]
[361576090,1747621517720,-511.05557012,0.00013698,2]
[361576091,1747621517746,-400.0,0.00013698,2]
[361576092,1747621517771,-400.0,0.00013698,2]
[361576093,1747621517797,-400.0,0.00013698,2]
[361576094,1747621517826,-400.0,0.00013698,2]
[361576095,1747621517851,-378.38572313,0.00013698,2]
[361576096,1747621517876,-405.22399002,0.00013698,2]
[361576097,1747621517902,-400.0,0.00013698,2]
[361576098,1747621517928,-400.0,0.00013698,2]
[361576099,1747621517959,-501.83675266,0.00013698,2]
[361576100,1747621517986,-418.66146165,0.00013698,2]
[361576101,1747621518013,-400.0,0.00013698,2]
[361576102,1747621518042,-400.0,0.00013698,2]
[361576103,1747621518070,-638.83,0.00013698,2]
[361576104,1747621518097,-409.99901255,0.00013698,2]
[361576105,1747621518123,-513.394504,0.00013698,2]
[361576106,1747621518150,-400.0,0.00013698,2]
[361576107,1747621518177,-400.0,0.00013698,2]
[361576108,1747621518205,-400.0,0.00013698,2]
[361576109,1747621518231,-400.0,0.00013698,2]
[361576110,1747621518261,-402.32423382,0.00013698,2]
[361576111,1747621518289,-400.0,0.00013698,2]
[361576112,1747621518316,-357.84864684,0.00013698,2]
[361576113,1747621518342,-400.0,0.00013698,2]
[361576114,1747621518370,-400.0,0.00013698,2]
[361576115,1747621518396,-400.0,0.00013698,2]
[361576116,1747621518423,-538.67,0.00013698,2]
[361576117,1747621518450,-500.0,0.00013698,2]
[361576118,1747621518480,-500.0,0.00013698,2]
[361576119,1747621518508,-400.0,0.00013698,2]
[361576120,1747621518538,-400.0,0.00013698,2]
[361576121,1747621518564,-400.0,0.00013698,2]
[361576122,1747621518591,-224.80853408,0.00013698,2]
[361576123,1747621518619,-400.0,0.00013698,2]
[361576124,1747621518645,-400.0,0.00013698,2]
[361576125,1747621518671,-400.0,0.00013698,2]
[361576126,1747621518697,-668.06,0.00013698,2]
[361576127,1747621518723,-464.08,0.00013698,2]
[361576128,1747621518749,-400.0,0.00013698,2]
[361576129,1747621518776,-420.78677551,0.00013698,2]
[361576130,1747621518804,-400.0,0.00013698,2]
[361576131,1747621518830,-500.0,0.00013698,2]
[361576132,1747621518858,-500.0,0.00013698,2]
[361576133,1747621518886,-659.93,0.00013698,2]
[361576134,1747621518913,-400.0,0.00013698,2]
[361576135,1747621518940,-400.0,0.00013698,2]
[361576136,1747621518968,-400.0,0.00013698,2]
[361576137,1747621519006,-404.83494171,0.00013698,2]
[361576138,1747621519038,-400.0,0.00013698,2]
[361576139,1747621519066,-400.0,0.00013698,2]
[361576140,1747621519095,-404.0813819,0.00013698,2]
[361576141,1747621519126,-400.0,0.00013698,2]
[361576142,1747621519566,-154.07973742,0.00013698,2]
[361576143,1747621519591,-400.0,0.00013698,2]
[361576144,1747621519616,-400.0,0.00013698,2]
[361576145,1747621519644,-400.0,0.00013698,2]
[361576146,1747621519668,-400.0,0.00013698,2]
[361576147,1747621519692,-400.0,0.00013698,2]
[361576148,1747621519716,-403.43045189,0.00013698,2]
[361576149,1747621519740,-434.25,0.00013698,2]
[361576150,1747621519764,-405.62833291,0.00013698,2]
[361576151,1747621519789,-413.84373995,0.00013698,2]
[361576152,1747621519814,-400.0,0.00013698,2]
[361576153,1747621519838,-491.3,0.00013698,2]
[361576154,1747621519863,-404.74826428,0.00013698,2]
[361576155,1747621519888,-423.35,0.00013698,2]
[361576156,1747621519913,-400.0,0.00013698,2]
[361576157,1747621519939,-400.0,0.00013698,2]
[361576158,1747621519968,-400.0,0.00013698,2]
[361576159,1747621519994,-400.0,0.00013698,2]
[361576160,1747621520019,-161.60108027,0.00013698,2]
[361576161,1747621520043,-400.95375353,0.00013698,2]
[361576162,1747621520068,-400.0,0.00013698,2]
[361576163,1747621520094,-971.23,0.00013698,2]
[361576164,1747621520120,-229.12319874,0.00013698,2]
[361576165,1747621520145,-505.54,0.00013698,2]
[361576166,1747621520169,-700.36,0.00013698,2]
[361576167,1747621520194,-502.99,0.00013698,2]
[361576168,1747621520218,-768.39,0.00013698,2]
[361576169,1747621520243,-405.54691951,0.00013698,2]
[361576170,1747621520268,-157.67718801,0.00013698,2]
[361576171,1747621520293,-400.0,0.00013698,2]
[361576172,1747621520318,-400.0,0.00013698,2]
[361576173,1747621520343,-759.97,0.00013698,2]
[361576174,1747621520369,-402.28109035,0.00013698,2]
[361576175,1747621520395,-411.78141352,0.00013698,2]
[361576176,1747621520420,-400.0,0.00013698,2]
[361576177,1747621520445,-400.0,0.00013698,2]
[361576178,1747621520480,-498.12,0.00013698,2]
[361576179,1747621520509,-402.26786144,0.00013698,2]
[361576180,1747621520537,-657.58,0.00013698,2]
[361576181,1747621520564,-1105.32,0.00013698,2]
[361576182,1747621520589,-400.0,0.00013698,2]
[361576183,1747621520615,-492.28,0.00013698,2]
[361576184,1747621520640,-400.0,0.00013698,2]
[361576185,1747621520665,-400.72533436,0.00013698,2]
[361576186,1747621520693,-3993.515383,0.00013698,2]
[361576187,1747621520720,-1188.46,0.00013698,2]
[361576188,1747621520746,-400.0,0.00013698,2]
[361576189,1747621520773,-1365.147528,0.00013698,2]
[361576190,1747621520799,-472.94,0.00013698,2]
[361576191,1747621520826,-408.53680582,0.00013698,2]
[361576192,1747621520852,-400.0,0.00013698,2]
[361576193,1747621520878,-400.45691655,0.00013698,2]
[361576194,1747621520905,-400.0,0.00013698,2]
[361576195,1747621520932,-759.77,0.00013698,2]
[361576196,1747621520959,-400.0,0.00013698,2]
[361576197,1747621520986,-400.0,0.00013698,2]
[361576198,1747621521019,-400.0,0.00013698,2]
[361576199,1747621521047,-222.95077541,0.00013698,2]
[361576200,1747621532538,171.32353806,0.0002,120]
[361576201,1747621563181,5874.6561801,8e-05,2]
[361576203,1747621654120,-192.59,0.00012798,2]
[361576204,1747621654144,-815.06978727,0.00013498,2]
[361576205,1747621654167,-160.92013148,0.00013598,2]
[361576206,1747621654190,-815.06978727,0.00013598,2]
[361576207,1747621654212,-385.1078114,0.00013598,2]
[361576208,1747621675396,2073.83993859,0.0001,2]
[361576212,1747621767393,-1000.0,0.00012753,2]
[361576233,1747621831793,-194.94,0.00012748,2]
[361576234,1747621831805,-194.94,0.00012812,2]
[361576235,1747621831815,-526.97168534,0.00013368,2]
[361576236,1747621831827,-585.59951899,0.00013598,2]
[361576237,1747621831840,-158.4723546,0.00013598,2]
[361576238,1747621831851,-2029.80505838,0.00013598,2]
[361576239,1747621831863,-238.45485177,0.00013598,2]
[361576240,1747621831875,-200.0,0.00013598,2]
[361576241,1747621831886,-1000.0,0.00013598,2]
[361576242,1747621831898,-1259.9149,0.00013598,2]
[361576243,1747621831909,-2029.80505838,0.00013632,2]
[361576244,1747621831919,-2029.80505838,0.00013665,2]
[361576245,1747621831930,-1200.0,0.00013672,2]
[361576246,1747621831942,-500.81373408,0.00013673,2]
[361576247,1747621831953,-500.0,0.00013673,2]
[361576248,1747621831964,-500.59069507,0.00013673,2]
[361576249,1747621831974,-364.86066263,0.00013673,2]
[361576250,1747621831986,-504.33739567,0.00013673,2]
[361576251,1747621831997,-500.35092152,0.00013673,2]
[361576252,1747621832008,-202.0,0.00013688,2]
[361576253,1747621832019,-207.4,0.0001369,2]
[361576254,1747621832030,-1003.22797598,0.00013697,2]
[361576255,1747621832041,-150.0,0.00013697,2]
[361576256,1747621832052,-400.30210016,0.00013698,2]
[361576257,1747621832064,-1136.143603,0.00013698,2]
[361576258,1747621832075,-400.0,0.00013698,2]
[361576259,1747621832087,-400.0,0.00013698,2]
[361576260,1747621832098,-319.39822178,0.00013698,2]
[361576261,1747621832109,-403.08340454,0.00013698,2]
[361576262,1747621832132,-400.0,0.00013698,2]
[361576263,1747621832146,-400.0,0.00013698,2]
[361576264,1747621832161,-400.93768376,0.00013698,2]
[361576265,1747621832174,-626.11,0.00013698,2]
[361576266,1747621832186,-400.0,0.00013698,2]
[361576267,1747621832199,-402.58242898,0.00013698,2]
[361576268,1747621832212,-583.2,0.00013698,2]
[361576269,1747621832225,-78.47378407,0.00013698,2]
[361576274,1747621832285,-321.81184885,0.00013698,2]
[361576276,1747621832297,-402.01348601,0.00013698,2]
[361576278,1747621832310,-404.76137579,0.00013698,2]
[361576280,1747621832321,-549.28,0.00013698,2]
[361576282,1747621832333,-401.69164129,0.00013698,2]
[361576285,1747621832345,-544.90536706,0.00013698,2]
[361576287,1747621832359,-400.0,0.00013698,2]
[361576289,1747621832371,-524.06164218,0.00013698,2]
[361576291,1747621832385,-400.0,0.00013698,2]
[361576294,1747621832399,-400.0,0.00013698,2]
[361576296,1747621832412,-400.0,0.00013698,2]
[361576298,1747621832424,-400.0,0.00013698,2]
[361576300,1747621832436,-400.0,0.00013698,2]
[361576302,1747621832447,-400.0,0.00013698,2]
[361576304,1747621832459,-400.0,0.00013698,2]
[361576307,1747621832470,-400.0,0.00013698,2]
[361576309,1747621832481,-408.71748484,0.00013698,2]
[361576311,1747621832491,-404.1224814,0.00013698,2]
[361576313,1747621832503,-400.0,0.00013698,2]
[361576315,1747621832515,-400.0,0.00013698,2]
[361576318,1747621832526,-400.0,0.00013698,2]
[361576320,1747621832537,-368.23060449,0.00013698,2]
[361576322,1747621832548,-408.79880224,0.00013698,2]
[361576324,1747621832563,-444.10737566,0.00013698,2]
[361576326,1747621832575,-401.24900847,0.00013698,2]
[361576329,1747621832587,-86.52728172,0.00013698,2]
[361576333,1747621832619,-313.47271828,0.00013698,2]
[361576335,1747621832630,-400.0,0.00013698,2]
[361576338,1747621832642,-507.08287521,0.00013698,2]
[361576340,1747621832655,-400.0,0.00013698,2]
[361576342,1747621832667,-401.43539256,0.00013698,2]
[361576344,1747621832678,-678.4,0.00013698,2]
[361576347,1747621832689,-400.0,0.00013698,2]
[361576349,1747621832701,-400.0,0.00013698,2]
[361576351,1747621832712,-400.0,0.00013698,2]
[361576353,1747621832724,-421.04,0.00013698,2]
[361576355,1747621832734,-400.0,0.00013698,2]
[361576356,1747621832745,-400.0,0.00013698,2]
[361576357,1747621832757,-403.67800251,0.00013698,2]
[361576358,1747621832768,-400.0,0.00013698,2]
[361576359,1747621832779,-404.87454044,0.00013698,2]
[361576360,1747621832790,-400.0,0.00013698,2]
[361576361,1747621832802,-472.32,0.00013698,2]
[361576362,1747621832814,-400.0,0.00013698,2]
[361576363,1747621832825,-400.0,0.00013698,2]
[361576364,1747621832836,-400.0,0.00013698,2]
[361576365,1747621832847,-400.0,0.00013698,2]
[361576366,1747621832858,-404.40766044,0.00013698,2]
[361576367,1747621832869,-542.96751476,0.00013698,2]
[361576368,1747621832880,-401.46678046,0.00013698,2]
[361576369,1747621832891,-400.0,0.00013698,2]
[361576370,1747621832901,-400.0,0.00013698,2]
[361576371,1747621832912,-400.70418178,0.00013698,2]
[361576372,1747621832923,-400.0,0.00013698,2]
[361576373,1747621832934,-400.0,0.00013698,2]
[361576374,1747621832945,-504.05534819,0.00013698,2]
[361576375,1747621832956,-480.57,0.00013698,2]
[361576376,1747621832967,-614.33,0.00013698,2]
[361576377,1747621832978,-400.0,0.00013698,2]
[361576378,1747621832989,-400.0,0.00013698,2]
[361576379,1747621833000,-400.0,0.00013698,2]
[361576380,1747621833011,-400.0,0.00013698,2]
[361576381,1747621833022,-350.17638948,0.00013698,2]
[361576382,1747621833034,-400.0,0.00013698,2]
[361576383,1747621833045,-404.84471653,0.00013698,2]
[361576384,1747621833057,-400.0,0.00013698,2]
[361576385,1747621833068,-404.50075903,0.00013698,2]
[361576386,1747621833080,-400.0,0.00013698,2]
[361576387,1747621833091,-403.18411134,0.00013698,2]
[361576388,1747621833101,-404.39889168,0.00013698,2]
[361576389,1747621833112,-400.0,0.00013698,2]
[361576390,1747621833123,-400.0,0.00013698,2]
[361576391,1747621833134,-400.0,0.00013698,2]
[361576392,1747621833146,-401.49934888,0.00013698,2]
[361576393,1747621833157,-400.0,0.00013698,2]
[361576394,1747621833168,-403.50548939,0.00013698,2]
[361576395,1747621833179,-400.0,0.00013698,2]
[361576396,1747621833190,-400.0,0.00013698,2]
[361576397,1747621833201,-404.43934112,0.00013698,2]
[361576398,1747621833212,-524.34,0.00013698,2]
[361576399,1747621833223,-400.0,0.00013698,2]
[361576400,1747621833234,-400.0,0.00013698,2]
[361576401,1747621833245,-400.0,0.00013698,2]
[361576402,1747621833255,-400.0,0.00013698,2]
[361576403,1747621833266,-280.71866992,0.00013698,2]
[361576404,1747621833276,-402.69292099,0.00013698,2]
[361576405,1747621833288,-400.0,0.00013698,2]
[361576406,1747621833298,-400.0,0.00013698,2]
[361576407,1747621833309,-400.0,0.00013698,2]
[361576408,1747621833320,-401.20328314,0.00013698,2]
[361576409,1747621833330,-400.0,0.00013698,2]
[361576410,1747621833341,-501.24208203,0.00013698,2]
[361576411,1747621833352,-522.05,0.00013698,2]
[361576412,1747621833362,-402.45969484,0.00013698,2]
[361576413,1747621833373,-400.0,0.00013698,2]
[361576414,1747621833383,-400.8210813,0.00013698,2]
[361576415,1747621833394,-400.72499429,0.00013698,2]
[361576416,1747621833404,-403.16074125,0.00013698,2]
[361576417,1747621833414,-203.30784719,0.00013698,2]
[361576418,1747621833425,-400.0,0.00013698,2]
[361576419,1747621833436,-400.0,0.00013698,2]
[361576420,1747621833446,-401.48679168,0.00013698,2]
[361576421,1747621833457,-400.0,0.00013698,2]
[361576422,1747621833467,-400.0,0.00013698,2]
[361576423,1747621833478,-400.77225585,0.00013698,2]
[361576424,1747621833489,-404.00668347,0.00013698,2]
[361576425,1747621833499,-415.01,0.00013698,2]
[361576426,1747621833509,-400.95355859,0.00013698,2]
[361576427,1747621833520,-544.51,0.00013698,2]
[361576428,1747621833531,-908.7,0.00013698,2]
[361576429,1747621833542,-400.0,0.00013698,2]
[361576430,1747621833553,-400.0,0.00013698,2]
[361576431,1747621833564,-405.35257127,0.00013698,2]
[361576432,1747621833577,-400.0,0.00013698,2]
[361576433,1747621833587,-401.31842997,0.00013698,2]
[361576434,1747621833598,-516.3614584,0.00013698,2]
[361576435,1747621833608,-409.52034372,0.00013698,2]
[361576436,1747621833619,-400.0,0.00013698,2]
[361576437,1747621833629,-400.0,0.00013698,2]
[361576438,1747621833640,-429.5,0.00013698,2]
[361576439,1747621833651,-250.0,0.00013698,2]
[361576440,1747621833661,-400.0,0.00013698,2]
[361576441,1747621833672,-408.3392386,0.00013698,2]
[361576442,1747621833682,-400.0,0.00013698,2]
[361576443,1747621833693,-400.0,0.00013698,2]
[361576444,1747621833704,-400.0,0.00013698,2]
[361576445,1747621833714,-400.0,0.00013698,2]
[361576446,1747621833724,-400.0,0.00013698,2]
[361576447,1747621833735,-400.0,0.00013698,2]
[361576448,1747621833746,-400.0,0.00013698,2]
[361576449,1747621833756,-400.0,0.00013698,2]
[361576450,1747621833766,-400.0,0.00013698,2]
[361576451,1747621833777,-631.13,0.00013698,2]
[361576452,1747621833787,-400.0,0.00013698,2]